fUSD/lending_fUSD_20240628
["ID","MTS","AMOUNT","RATE_DAILY","PERIOD"]
[330589420,1719599444070,-167.62086348,0.0001399,2]
[330589421,1719599444079,-1333.76884471,0.00014,2]
[330589422,1719599444091,-507444.1433113,0.00014,2]
[330589423,1719599444101,-420.0,0.00014044,2]
[330589424,1719599444110,-307.63495467,0.00014093,2]
[330589425,1719599444120,-155.0,0.00014099,2]
[330589426,1719599444130,-532.71676313,0.00014099,2]
[330589427,1719599444139,-202.05047868,0.00014099,2]
[330589428,1719599444148,-1311.52136909,0.00014193,2]
[330589429,1719599444157,-1443.88754936,0.00014193,2]
[330589430,1719599444168,-1000.0,0.00014404,2]
[330589431,1719599444178,-217.81272639,0.00014499,2]
[330589432,1719599444189,-548.40346517,0.000149,2]
[330589433,1719599444200,-150.0,0.00014959,2]
[330589434,1719599444210,-283.69727751,0.00014973,2]
[330589435,1719599444220,-283.69727751,0.00014973,2]
[330589436,1719599444229,-169.6676061,0.00015,2]
[330589437,1719599444238,-23796.47874006,0.00015,2]
[330589438,1719599444250,-320.80343915,0.00015,2]
[330589439,1719599444262,-6596.28060567,0.00015,2]
[330589440,1719599444274,-36663.47496338,0.00015,2]
[330589492,1719599446888,-8457.22941773,0.00015,2]
[330589497,1719599446900,-284.2125,0.00015,2]
[330589500,1719599446912,-431.96925012,0.00015,2]
[330589527,1719599447440,-2441.84596,0.00015,2]
[330589528,1719599447452,-3299.06240855,0.00015,2]
[330589529,1719599447465,-3270.06382165,0.00015,2]
[330589530,1719599447477,-1699.893,0.00015,2]
[330589531,1719599447488,-549.65353905,0.00015,2]
[330589532,1719599447499,-1086.48134329,0.00015,2]
[330589533,1719599447708,-1396.7364109,0.00015,2]
[330589534,1719599447721,-1752.76552641,0.00015,2]
[330589535,1719599447732,-1211.81700269,0.00015,2]
[330589543,1719599655012,2235.54367464,0.00011,2]
[330589544,1719599672155,1264.71015021,6.94e-05,2]
[330589556,1719599743745,5254.20901217,0.000112,2]
[330589561,1719599778608,19608.51382202,8.412e-05,2]
[330589564,1719599833387,210.08231497,0.0001,2]
[330589565,1719599852925,684.52882311,0.00011199,2]
[330589567,1719599858729,502.33311118,0.00011199,2]
[330589568,1719599863525,684.52882311,0.00011199,2]
[330589569,1719599866936,1251.71322753,0.00010196,2]
[330589571,1719599886819,155.0,0.00010196,2]
[330589575,1719599993268,-668.21120511,0.00025,30]
[330589576,1719599993293,-921.36094793,0.00025,30]
[330589577,1719599993323,-292.73037552,0.0002739,30]
[330589578,1719599993689,-150.0,0.00027397,30]
[330589579,1719599993716,-200.0,0.00027397,60]
[330589580,1719599993749,-150.0,0.00027534,30]
[330589581,1719599993775,-150.0,0.00027671,30]
[330589582,1719599993799,-150.0,0.00027808,30]
[330589583,1719599993823,-150.0,0.00027945,30]
[330589584,1719599993847,-150.0,0.00028082,30]
[330589585,1719599993872,-150.0,0.00028219,30]
[330589586,1719599993895,-150.0,0.00028356,30]
[330589587,1719599993920,-150.0,0.00028493,30]
[330589588,1719599993946,-150.0,0.0002863,30]
[330589589,1719599993972,-150.0,0.00028767,30]
[330589590,1719599993996,-1314.48,0.00028767,35]
[330589591,1719599994019,-150.0,0.00028904,30]
[330589592,1719599994046,-150.0,0.00029041,30]
[330589593,1719599994070,-150.0,0.00029178,30]
[330589594,1719599994095,-1208.0,0.00029288,30]
[330589595,1719599994119,-150.0,0.00029315,30]
[330589596,1719599994143,-150.0,0.00029452,30]
[330589597,1719599994173,-150.0,0.00029589,30]
[330589598,1719599994197,-150.0,0.00029726,30]
[330589599,1719599994222,-231.27000512,0.00029863,30]
[330589600,1719599994249,-1136.51539364,0.0003,30]
[330589601,1719599994273,-798.0,0.0003,30]
[330589602,1719599994297,-3000.0,0.0003,30]
[330589603,1719599994320,-3000.0,0.0003,30]
[330589604,1719599994344,-3000.0,0.0003,30]
[330589605,1719599994368,-3000.0,0.0003,30]
[330589606,1719599994395,-500.0,0.00030136,30]
[330589607,1719599994420,-500.0,0.00030136,30]
[330589608,1719599994445,-500.0,0.00030136,30]
[330589609,1719599994475,-500.0,0.00030136,30]
[330589610,1719599994500,-500.0,0.00030136,30]
[330589611,1719599994525,-500.0,0.00030136,30]
[330589612,1719599994548,-500.0,0.00030136,30]
[330589613,1719599994572,-500.0,0.00030136,30]
[330589614,1719599994597,-500.0,0.00030136,30]
[330589615,1719599994622,-500.0,0.00030136,30]
[330589616,1719599994645,-300.36996816,0.00030136,30]
[330589617,1719599994670,-1314.48,0.00030136,40]
[330589618,1719599994694,-500.0,0.00030136,30]
[330589619,1719599994719,-500.0,0.00030136,30]
[330589620,1719599994743,-500.0,0.00030136,30]
[330589621,1719599994768,-1374.53,0.00030136,30]
[330589622,1719599994794,-1374.53,0.00030136,30]
[330589623,1719599994818,-1374.53,0.00030136,30]
[330589624,1719599994843,-1374.53,0.00030136,30]
[330589625,1719599994866,-1374.53,0.00030136,30]
[330589626,1719599994891,-1374.53,0.00030136,30]
[330589627,1719599994914,-1374.53,0.00030136,30]
[330589628,1719599994937,-1374.53,0.00030136,30]
[330589629,1719599994960,-1374.53,0.00030136,30]
[330589630,1719599994984,-1374.53,0.00030136,30]
[330589631,1719599995008,-1374.53,0.00030136,30]
[330589632,1719599995031,-1374.53,0.00030136,30]
[330589633,1719599995055,-1374.53,0.00030136,30]
[330589634,1719599995078,-1374.53,0.00030136,30]
[330589635,1719599995102,-1374.53,0.00030136,30]
[330589636,1719599995139,-1374.53,0.00030136,30]
[330589637,1719599995176,-1374.53,0.00030136,30]
[330589638,1719599995211,-1374.53,0.00030136,30]
[330589639,1719599995248,-1374.53,0.00030136,30]
[330589640,1719599995284,-1374.53,0.00030136,30]
[330589641,1719599995321,-1374.53,0.00030136,30]
[330589642,1719599995357,-1374.53,0.00030136,30]
[330589643,1719599995394,-1374.53,0.00030136,30]
[330589644,1719599995433,-1374.55236486,0.00030136,30]
[330589645,1719599995471,-500.0,0.00030136,30]
[330589646,1719599995506,-500.0,0.00030136,30]
[330589647,1719599995544,-500.0,0.00030136,30]
[330589648,1719599995582,-500.0,0.00030136,30]
[330589649,1719599995620,-500.0,0.00030136,30]
[330589650,1719599995658,-500.0,0.00030136,30]
[330589651,1719599995695,-500.0,0.00030136,30]
[330589652,1719599995735,-500.0,0.00030136,30]
[330589653,1719599995774,-500.0,0.00030136,30]
[330589654,1719599995816,-600.24,0.00030136,30]
[330589655,1719599995853,-459.4296308,0.00030136,30]
[330589656,1719599995888,-200.0,0.00030137,60]
[330589657,1719599995924,-150.0,0.00030317,120]
[330589658,1719599995970,-250.0,0.000308,30]
[330589659,1719599996007,-2603.0,0.00030989,34]
[330589660,1719599996042,-1640.0,0.00031,30]
[330589661,1719599996080,-150.0,0.00031198,120]
[330589662,1719599996116,-150.0,0.00031235,120]
[330589663,1719599996155,-4429265.57,0.0003138,30]
[330589664,1719599996197,-150.0,0.00031472,120]
[330589665,1719599996236,-1314.48,0.00031506,45]
[330589666,1719599997410,-150.0,0.00031747,120]
[330589667,1719599997451,-150.0,0.00031967,120]
[330589668,1719599997490,-150.0,0.00032056,120]
[330589669,1719599997532,-150.0,0.00032463,120]
[330589670,1719599997576,-150.0,0.00032518,120]
[330589671,1719599997620,-150.0,0.00032621,120]
[330589672,1719599997662,-626.46716284,0.00032876,30]
[330589673,1719599997706,-1314.48,0.00032876,50]
[330589674,1719599997745,-200.0,0.00032877,60]
[330589675,1719599997787,-150.0,0.00033149,120]
[330589676,1719599997825,-589.06,0.00033151,120]
[330589677,1719599997867,-682.66,0.00033151,120]
[330589678,1719599997908,-154.02,0.000335,31]
[330589679,1719599997945,-154.02,0.000335,31]
[330589680,1719599997984,-154.02,0.000335,31]
[330589681,1719599998025,-154.02,0.000335,31]
[330589682,1719599998068,-150.0,0.0003357,120]
[330589683,1719599998108,-150.0,0.00033608,120]
[330589684,1719599998152,-500.0,0.00034,120]
[330589685,1719599998193,-700.0,0.00034,120]
[330589686,1719599998232,-1314.48,0.00034246,55]
[330589687,1719599998273,-150.0,0.00034514,120]
[330589688,1719599998315,-186.15074548,0.00035,30]
[330589689,1719599998355,-1292.70530456,0.00035,30]
[330589690,1719599998392,-500.0,0.00035,120]
[330589691,1719599998435,-150.0,0.00035105,120]
[330589692,1719599998476,-1314.48,0.00035616,60]
[330589693,1719599998512,-500.0,0.00035616,30]
[330589694,1719599998550,-379.43347806,0.00035616,30]
[330589695,1719599998586,-200.0,0.00035616,60]
[330589696,1719599998630,-150.0,0.00035645,120]
[330589697,1719599998678,-150.0,0.00035696,120]
[330589698,1719599998717,-500.0,0.00036,120]
[330589699,1719599998756,-700.0,0.00036,120]
[330589700,1719599998796,-154.02,0.000361,31]
[330589701,1719599998838,-154.02,0.000361,31]
[330589702,1719599998879,-154.02,0.000361,31]
[330589703,1719599998919,-154.02,0.000361,31]
[330589704,1719599998960,-150.0,0.00036503,120]
[330589705,1719599999000,-150.0,0.00036894,120]
[330589706,1719599999041,-1314.48,0.00036986,65]
[330589707,1719599999079,-250.0,0.00037,120]
[330589708,1719599999118,-778.01423892,0.00037,120]
[330589709,1719599999159,-150.0,0.00037232,120]
[330589710,1719599999201,-150.0,0.00037238,120]
[330589711,1719599999243,-150.0,0.00037378,120]
[330589712,1719599999284,-150.0,0.00037605,120]
[330589713,1719599999325,-372.76388311,0.00038,30]
[330589714,1719599999362,-203.94260263,0.00038,30]
[330589715,1719599999401,-182.44308668,0.00038,120]
[330589716,1719599999440,-669.21,0.00038,30]
[330589717,1719599999480,-1000.0,0.00038,120]
[330589718,1719599999518,-1314.48,0.00038356,70]
[330589719,1719599999556,-500.0,0.00038356,30]
[330589720,1719599999593,-500.0,0.00038356,30]
[330589721,1719600000731,-500.0,0.00038356,30]
[330589722,1719600000814,-500.0,0.00038356,30]
[330589723,1719600000855,-500.0,0.00038356,30]
[330589724,1719600000892,-461.43408197,0.00038356,30]
[330589725,1719600000929,-273.1577579,0.00038356,60]
[330589726,1719600000966,-414.23938514,0.00038356,30]
[330589727,1719600001004,-150.0,0.00038401,120]
[330589728,1719600001041,-150.0,0.00038505,120]
[330589729,1719600001078,-414.23938514,0.00038521,30]
[330589730,1719600001115,-150.0,0.00038561,120]
[330589731,1719600001153,-154.02,0.000386,31]
[330589732,1719600001192,-154.02,0.000386,31]
[330589733,1719600001230,-154.02,0.000386,31]
[330589734,1719600001267,-154.02,0.000386,31]
[330589735,1719600001305,-414.23938514,0.00038685,30]
[330589736,1719600001339,-611.09021546,0.000387,30]
[330589737,1719600001374,-10284.15500752,0.000388,45]
[330589738,1719600001410,-414.23938514,0.00038849,30]
[330589739,1719600001448,-699.52391469,0.000389,30]
[330589740,1719600001484,-168.83266221,0.00039,30]
[330589741,1719600001520,-154.83577814,0.00039,120]
[330589742,1719600001555,-414.23938514,0.00039014,30]
[330589743,1719600001592,-150.0,0.00039156,120]
[330589744,1719600001629,-414.23938514,0.00039178,30]
[330589745,1719600001666,-414.23938514,0.00039315,30]
[330589746,1719600001702,-150.0,0.00039347,120]
[330589747,1719600001739,-414.23938514,0.00039479,30]
[330589748,1719600001782,-289.00422216,0.00039479,30]
[330589749,1719600001815,-328.83461791,0.000395,30]
[330589750,1719600001850,-414.23938514,0.00039644,30]
[330589751,1719600001885,-472.36909708,0.000397,60]
[330589752,1719600001919,-1314.48,0.00039726,75]
[330589753,1719600001954,-2495.51,0.00039726,90]
[330589754,1719600001989,-414.23938514,0.00039808,30]
[330589755,1719600002024,-180.32680121,0.0003988,120]
[330589756,1719600002061,-150.0,0.0003988,120]
[330589757,1719600002098,-414.23938514,0.00039973,30]
[330589758,1719600002135,-400.0,0.00039987,36]
[330589759,1719600002174,-250.0,0.00039999,30]
[330589760,1719600002211,-477.12749073,0.0004,30]
[330589761,1719600002250,-408.77428129,0.0004,30]
[330589762,1719600002287,-262.66988501,0.0004,30]
[330589763,1719600002323,-726.92034219,0.0004,30]
[330589764,1719600002358,-612.59448764,0.0004,30]
[330589765,1719600002397,-230.25703416,0.0004,30]
[330589766,1719600002439,-241.43866249,0.0004,30]
[330589767,1719600002478,-733.0,0.0004,60]
[330589768,1719600002523,-151.0,0.0004,120]
[330589769,1719600002563,-172.27777778,0.0004,120]
[330589770,1719600002603,-600.0,0.0004,120]
[330589771,1719600002640,-2000.0,0.0004,120]
[330589772,1719600002677,-2000.0,0.0004,120]
[330589773,1719600002721,-2000.0,0.0004,120]
[330589774,1719600002760,-1000.0,0.0004,120]
[330589775,1719600002797,-309.62629908,0.0004,120]
[330589776,1719600002834,-1613.72534395,0.0004,120]
[330589777,1719600002871,-308.03923783,0.0004,120]
[330589778,1719600002908,-864.39246185,0.0004,120]
[330589779,1719600002946,-385.46824924,0.0004,120]
[330589780,1719600002991,-500.0,0.0004,120]
[330589781,1719600003028,-1194.60848402,0.0004,100]
[330589782,1719600003068,-980.5062304,0.0004,30]
[330589783,1719600003105,-298.16,0.0004,120]
[330589784,1719600003144,-165.54392445,0.0004001,30]
[330589785,1719600003182,-154.79204592,0.00040058,30]
[330589786,1719600003219,-464.33394173,0.0004007,30]
[330589787,1719600003256,-414.23938514,0.00040137,30]
[330589788,1719600003293,-408.5105072,0.0004025,120]
[330589789,1719600003329,-2495.51,0.00040273,92]
[330589790,1719600003367,-414.23938514,0.00040301,30]
[330589791,1719600003405,-151.00642554,0.00040324,30]
[330589792,1719600003442,-183.47052371,0.00040335,30]
[330589793,1719600003478,-343.56587168,0.0004034,30]
[330589794,1719600003513,-414.23938514,0.00040466,30]
[330589795,1719600003548,-151.00642554,0.00040511,30]
[330589796,1719600003584,-207.2920081,0.00040575,30]
[330589797,1719600003621,-809.0,0.000406,30]
[330589798,1719600003660,-414.23938514,0.0004063,30]
[330589799,1719600003700,-154.79204592,0.00040673,30]
[330589800,1719600003739,-154.31578895,0.00040675,30]
[330589801,1719600003779,-2025.0,0.000407,81]
[330589802,1719600003819,-172.27777778,0.00040712,120]
[330589803,1719600003857,-166.66666669,0.0004082,30]
[330589804,1719600003896,-2495.51,0.00040821,94]
[330589805,1719600003934,-165.54392449,0.00040903,30]
[330589806,1719600003970,-1501.285813,0.00041,120]
[330589807,1719600004006,-682.18177489,0.00041,120]
[330589808,1719600004044,-405.62194093,0.00041,60]
[330589809,1719600004083,-50276.43279887,0.00041,30]
[330589810,1719600004122,-2473.34561093,0.00041,30]
[330589811,1719600004162,-500.0,0.00041095,30]
[330589812,1719600004209,-500.0,0.00041095,30]
[330589813,1719600004247,-500.0,0.00041095,30]
[330589814,1719600004284,-500.0,0.00041095,30]
[330589815,1719600004322,-425.69992632,0.00041095,30]
[330589816,1719600004359,-1000.0,0.00041095,120]
[330589817,1719600004399,-1314.48,0.00041095,80]
[330589818,1719600004439,-500.0,0.00041095,30]
[330589819,1719600004478,-500.0,0.00041095,30]
[330589820,1719600004515,-500.0,0.00041095,30]
[330589821,1719600004764,-500.0,0.00041095,30]
[330589822,1719600004805,-500.0,0.00041095,30]
[330589823,1719600004860,-500.0,0.00041095,30]
[330589824,1719600004901,-500.0,0.00041095,30]
[330589825,1719600004943,-500.0,0.00041095,30]
[330589826,1719600004986,-500.0,0.00041095,30]
[330589827,1719600005027,-500.0,0.00041095,30]
[330589828,1719600005069,-500.0,0.00041095,30]
[330589829,1719600005110,-500.0,0.00041095,30]
[330589830,1719600005149,-500.0,0.00041095,30]
[330589831,1719600005193,-500.0,0.00041095,30]
[330589832,1719600005235,-500.0,0.00041095,30]
[330589833,1719600005277,-508.82442213,0.00041095,120]
[330589834,1719600005317,-1000.0,0.00041096,30]
[330589835,1719600005359,-816.571095,0.000411,30]
[330589836,1719600005401,-151.00642554,0.00041119,30]
[330589837,1719600005445,-151.0,0.00041123,120]
[330589838,1719600005488,-600.0,0.00041132,30]
[330589839,1719600005535,-1000.0,0.00041147,30]
[330589840,1719600005576,-155.75150186,0.00041191,30]
[330589841,1719600005616,-1000.0,0.00041197,30]
[330589842,1719600005658,-154.02,0.000412,31]
[330589843,1719600005700,-154.02,0.000412,31]
[330589844,1719600005747,-154.02,0.000412,31]
[330589845,1719600005797,-154.02,0.000412,31]
[330589846,1719600005839,-1000.0,0.00041248,30]
[330589847,1719600005879,-155.75150186,0.00041268,30]
[330589848,1719600005920,-1000.0,0.00041299,30]
[330589849,1719600005964,-228.57063521,0.00041338,30]
[330589850,1719600006008,-1000.0,0.0004135,30]
[330589851,1719600006057,-2495.51,0.00041369,96]
[330589852,1719600006096,-152.0,0.00041395,31]
[330589853,1719600006134,-1000.0,0.000414,30]
[330589854,1719600006175,-172.27777778,0.00041425,120]
[330589855,1719600006216,-1000.0,0.00041451,30]
[330589856,1719600006256,-1000.0,0.00041502,30]
[330589857,1719600006293,-166.66666666,0.00041514,30]
[330589858,1719600006338,-1000.0,0.00041553,30]
[330589859,1719600006376,-197.47651852,0.00041553,30]
[330589860,1719600006414,-165.87119952,0.00041589,30]
[330589861,1719600006454,-1000.0,0.00041603,30]
[330589862,1719600006495,-150.0,0.00041605,120]
[330589863,1719600006533,-153.98406922,0.00041617,30]
[330589864,1719600006570,-1000.0,0.00041654,30]
[330589865,1719600006608,-2100.0,0.0004168,30]
[330589866,1719600006646,-600.0,0.0004168,30]
[330589867,1719600006688,-2600.0,0.0004168,30]
[330589868,1719600006727,-700.0,0.0004168,30]
[330589869,1719600006765,-900.0,0.0004168,30]
[330589870,1719600006803,-166.66666666,0.00041697,30]
[330589871,1719600006840,-207.2920081,0.00041699,30]
[330589872,1719600006879,-1000.0,0.00041705,30]
[330589873,1719600006920,-166.66666666,0.0004172,30]
[330589874,1719600006957,-464.33394173,0.00041735,30]
[330589875,1719600006994,-157.3835357,0.00041754,30]
[330589876,1719600007031,-1000.0,0.00041755,30]
[330589877,1719600007071,-287.87248608,0.000418,120]
[330589878,1719600007110,-1000.0,0.00041806,30]
[330589879,1719600007148,-1000.0,0.00041857,30]
[330589880,1719600007187,-152.0,0.0004189,31]
[330589881,1719600007226,-1000.0,0.00041908,30]
[330589882,1719600007265,-150.0,0.00041913,120]
[330589883,1719600007305,-464.33394173,0.00041915,30]
[330589884,1719600007345,-2495.51,0.00041917,98]
[330589885,1719600007384,-228.57063521,0.00041947,30]
[330589886,1719600007429,-1000.0,0.00041958,30]
[330589887,1719600007470,-166.96977758,0.00041961,30]
[330589888,1719600007507,-1276.35942145,0.00041964,30]
[330589889,1719600007548,-2166.46638259,0.00041987,30]
[330589890,1719600007586,-150.0,0.00041994,120]
[330589891,1719600007624,-271.17067437,0.00042,60]
[330589892,1719600007662,-1000.0,0.00042,120]
[330589893,1719600007700,-382.04507945,0.00042,120]
[330589894,1719600007739,-980.15777622,0.00042,120]
[330589895,1719600007780,-699.57673472,0.00042,120]
[330589896,1719600007819,-579.0,0.00042,120]
[330589897,1719600007858,-1000.0,0.00042009,30]
[330589898,1719600007895,-157.3835357,0.00042011,30]
[330589899,1719600007932,-1000.0,0.0004206,30]
[330589900,1719600007971,-1000.0,0.00042111,30]
[330589901,1719600008010,-172.27777778,0.00042137,120]
[330589902,1719600008050,-150.0,0.00042139,120]
[330589903,1719600008089,-197.47651852,0.00042143,30]
[330589904,1719600008130,-1000.0,0.00042161,30]
[330589905,1719600008170,-154.33905222,0.00042169,30]
[330589906,1719600008215,-343.56587168,0.00042177,30]
[330589907,1719600008255,-166.96977758,0.00042185,30]
[330589908,1719600008294,-197.47651852,0.00042194,30]
[330589909,1719600008332,-1000.0,0.00042212,30]
[330589910,1719600008370,-2100.0,0.00042228,30]
[330589911,1719600008412,-600.0,0.00042228,30]
[330589912,1719600008454,-2600.0,0.00042228,30]
[330589913,1719600008498,-700.0,0.00042228,30]
[330589914,1719600008543,-900.0,0.00042228,30]
[330589915,1719600008581,-151.0,0.00042247,120]
[330589916,1719600008620,-166.6666667,0.00042251,30]
[330589917,1719600008663,-150.0,0.00042254,120]
[330589918,1719600008701,-1000.0,0.00042263,30]
[330589919,1719600008746,-1039.0,0.00042267,30]
[330589920,1719600008784,-343.56587168,0.00042303,30]
[330589921,1719600008821,-1000.0,0.00042314,30]
[330589922,1719600008863,-1000.0,0.00042364,30]
[330589923,1719600008902,-1000.0,0.00042415,30]
[330589924,1719600008944,-153.98406922,0.00042427,30]
[330589925,1719600008983,-1314.48,0.00042465,85]
[330589926,1719600009335,-2495.51,0.00042465,100]
[330589927,1719600009373,-1000.0,0.00042466,30]
[330589928,1719600009412,-408.43625166,0.00042497,120]
[330589929,1719600009452,-1108.95,0.000425,120]
[330589930,1719600009488,-207.2920081,0.00042512,30]
[330589931,1719600009527,-1000.0,0.00042516,30]
[330589932,1719600009564,-157.3835357,0.00042559,30]
[330589933,1719600009602,-1000.0,0.00042567,30]
[330589934,1719600009639,-151.00642554,0.0004258,30]
[330589935,1719600009678,-1000.0,0.00042618,30]
[330589936,1719600009717,-1000.0,0.00042669,30]
[330589937,1719600009756,-1000.0,0.00042719,30]
[330589938,1719600009796,-154.33905224,0.00042734,30]
[330589939,1719600009833,-930.0,0.00042744,30]
[330589940,1719600009869,-197.47651852,0.00042757,30]
[330589941,1719600009908,-1000.0,0.0004277,30]
[330589942,1719600009945,-2100.0,0.00042776,30]
[330589943,1719600009982,-600.0,0.00042776,30]
[330589944,1719600010020,-2600.0,0.00042776,30]
[330589945,1719600010056,-700.0,0.00042776,30]
[330589946,1719600010093,-900.0,0.00042776,30]
[330589947,1719600010130,-1047.6489,0.000428,30]
[330589948,1719600010170,-197.47651852,0.00042818,30]
[330589949,1719600010207,-1000.0,0.00042821,30]
[330589950,1719600010244,-172.27777778,0.00042849,120]
[330589951,1719600010281,-1000.0,0.00042872,30]
[330589952,1719600010318,-221.32459846,0.0004288,120]
[330589953,1719600010355,-1116.43168472,0.000429,120]
[330589954,1719600010394,-6525.77347386,0.000429,120]
[330589955,1719600010432,-1000.0,0.00042922,30]
[330589956,1719600010472,-151.00642554,0.00042943,30]
[330589957,1719600010512,-197.47651852,0.00042962,30]
[330589958,1719600010551,-1000.0,0.00042973,30]
[330589959,1719600010586,-1276.35942145,0.00042977,30]
[330589960,1719600010624,-151.0,0.00043,30]
[330589961,1719600010660,-151.0,0.00043,30]
[330589962,1719600010696,-151.0,0.00043,30]
[330589963,1719600010731,-151.0,0.00043,30]
[330589964,1719600010768,-151.0,0.00043,30]
[330589965,1719600010806,-151.0,0.00043,30]
[330589966,1719600010843,-197.0,0.00043,30]
[330589967,1719600010879,-1270.77331473,0.00043,30]
[330589968,1719600010913,-1960.42033866,0.00043,30]
[330589969,1719600010948,-769.66220005,0.00043,30]
[330589970,1719600010983,-769.7612307,0.00043,120]
[330589971,1719600011020,-283.3079977,0.00043,120]
[330589972,1719600011056,-2000.0,0.00043,120]
[330589973,1719600011092,-705.4975,0.00043,120]
[330589974,1719600011127,-500.0,0.00043,120]
[330589975,1719600011162,-2495.51,0.00043013,102]
[330589976,1719600011202,-155.75150186,0.00043018,30]
[330589977,1719600011239,-204.36156903,0.0004302,120]
[330589978,1719600011275,-1000.0,0.00043024,30]
[330589979,1719600011310,-228.57063521,0.00043066,30]
[330589980,1719600011345,-197.47651852,0.00043071,30]
[330589981,1719600011382,-1000.0,0.00043075,30]
[330589982,1719600011425,-154.31578898,0.00043079,30]
[330589983,1719600011464,-523.2676444,0.00043098,120]
[330589984,1719600011502,-150.0,0.00043108,120]
[330589985,1719600011536,-7054.13,0.00043119,30]
[330589986,1719600011570,-7054.13,0.00043119,30]
[330589987,1719600011607,-7054.13,0.00043119,30]
[330589988,1719600011643,-7054.13,0.00043119,30]
[330589989,1719600011682,-1000.0,0.00043125,30]
[330589990,1719600011722,-157.3835357,0.00043127,30]
[330589991,1719600011759,-150.0,0.00043134,120]
[330589992,1719600011793,-184.19747522,0.00043135,30]
[330589993,1719600011827,-1000.0,0.00043176,30]
[330589994,1719600011861,-930.0,0.00043184,30]
[330589995,1719600011895,-1000.0,0.00043227,30]
[330589996,1719600011931,-156.39906771,0.00043247,30]
[330589997,1719600011968,-228.57063521,0.0004325,30]
[330589998,1719600012005,-1000.0,0.00043278,30]
[330589999,1719600012040,-2100.0,0.00043324,30]
[330590000,1719600012075,-745.03629142,0.00043324,30]
[330590001,1719600012110,-2600.0,0.00043324,30]
[330590002,1719600012145,-700.0,0.00043324,30]
[330590003,1719600012185,-900.0,0.00043324,30]
[330590004,1719600012219,-1000.0,0.00043328,30]
[330590005,1719600012259,-151.0,0.0004337,120]
[330590006,1719600012299,-157.3835357,0.00043371,30]
[330590007,1719600012340,-1000.0,0.00043379,30]
[330590008,1719600012382,-7054.13,0.00043392,30]
[330590009,1719600012434,-7054.13,0.00043392,30]
[330590010,1719600012475,-1000.0,0.0004343,30]
[330590011,1719600012510,-1000.0,0.0004348,30]
[330590012,1719600012553,-166.96977762,0.00043498,30]
[330590013,1719600012596,-50141.03083775,0.000435,120]
[330590014,1719600012642,-157.3835358,0.00043528,30]
[330590015,1719600012686,-1000.0,0.00043531,30]
[330590016,1719600012729,-2495.51,0.00043561,104]
[330590017,1719600012774,-172.27777778,0.00043562,120]
[330590018,1719600012816,-1000.0,0.00043582,30]
[330590019,1719600012852,-165.87119952,0.0004362,30]
[330590020,1719600012894,-151.0064256,0.0004362,30]
[330590021,1719600012933,-930.0,0.00043625,30]
[330590022,1719600012970,-1000.0,0.00043633,30]
[330590023,1719600013006,-617.2772037,0.00043654,30]
[330590024,1719600013042,-716.52572998,0.00043656,30]
[330590025,1719600013079,-343.56587168,0.00043664,30]
[330590026,1719600013116,-1276.35942145,0.00043664,30]
[330590027,1719600013151,-343.56587168,0.00043665,30]
[330590028,1719600013188,-7054.13,0.00043665,30]
[330590029,1719600013224,-7054.13,0.00043665,30]
[330590030,1719600013478,-287.36369513,0.00043674,30]
[330590031,1719600013514,-981.97456039,0.00043675,30]